bitfinex/quotes_SOLUSD_20250922
["timestamp","ask_amount","ask_price","bid_price","bid_amount"]
[1758503704842,31.92,233.84,233.73,0.66]
[1758503705042,1.35047713,233.83,233.73,0.66]
[1758503705441,32.55047713,233.83,233.73,0.66]
[1758503705662,32.55047713,233.83,233.69,0.66]
[1758503705663,1.35047713,233.78,233.69,0.66]
[1758503705866,1.35047713,233.75,233.68,0.66]
[1758503706073,0.72,233.79,233.68,0.66]
[1758503706270,1.35047713,233.76,233.69,4.27917326]
[1758503706565,1.35047713,233.76,233.7,0.66]
[1758503706952,1.35047713,233.78,233.7,0.66]
[1758503708353,1.35047713,233.78,233.71,14.97582473]
[1758503708562,1.35047713,233.78,233.72,0.66]
[1758503708759,1.35047713,233.82,233.72,0.66]
[1758503708950,0.72,233.83,233.74,31.2]
[1758503709265,0.72,233.83,233.75,0.69]
[1758503709566,2.03047713,233.89,233.75,0.69]
[1758503709766,4.70213799,233.99,233.79,31.2]
[1758503709767,0.68,233.99,233.79,31.2]
[1758503709969,0.68,233.98,233.8,0.69]
[1758503710286,0.68,233.98,233.84,31.2]
[1758503710573,31.88,233.97,233.85,0.69]
[1758503710774,31.88,233.97,233.85,4.96624545]
[1758503711086,0.68,233.96,233.85,15.65685909]
[1758503712475,0.68,233.95,233.85,15.65685909]
[1758503712654,0.68,233.95,233.85,4.96624545]
[1758503712655,0.68,233.94,233.85,4.96624545]
[1758503712967,0.68,233.93,233.84,0.69]
[1758503714264,31.2,233.92,233.84,0.69]
[1758503714456,0.68,233.91,233.81,0.69]
[1758503714983,0.68,233.91,233.78,31.89]
[1758503715285,35.78,233.9,233.79,0.69]
[1758503715647,35.76,233.9,233.79,0.69]
[1758503716461,35.76,233.9,233.8,14.97005987]
[1758503716668,35.76,233.9,233.81,0.69]
[1758503717774,35.76,233.9,233.8,4.27715996]
[1758503717947,0.68,233.89,233.8,4.27715996]
[1758503718148,0.68,233.88,233.8,4.27715996]
[1758503718347,31.88,233.87,233.75,0.69]
[1758503718976,31.88,233.87,233.76,4.27789185]
[1758503719184,0.68,233.86,233.77,0.69]
[1758503719771,26.76,233.87,233.77,0.69]
[1758503720585,26.76,233.87,233.78,4.27752587]
[1758503720786,26.76,233.87,233.79,0.69]
[1758503721367,12.86090927,233.95,233.79,0.69]
[1758503721563,3.55782956,234.04,233.81,31.2]
[1758503721862,12.85815314,234.0,233.82,0.69]
[1758503722077,31.2,233.97,233.82,0.69]
[1758503722270,35.42,233.99,233.82,0.69]
[1758503722458,31.2,233.96,233.83,14.96813924]
[1758503722662,31.2,233.96,233.84,0.69]
[1758503723752,0.34,233.98,233.86,31.2]
[1758503723957,40.79566883,234.06,233.87,31.89]
[1758503723958,0.34,234.04,233.87,31.89]
[1758503724158,21.9825877,234.06,233.88,0.69]
[1758503724475,0.34,234.05,233.92,31.2]
[1758503724668,0.34,234.04,233.92,31.89]
[1758503724866,31.54,234.03,233.92,31.89]
[1758503725268,0.34,234.02,233.88,4.27565438]
[1758503725587,31.2,234.03,233.89,0.69]
[1758503725969,31.54,234.03,233.91,31.2]
[1758503726176,31.54,234.03,233.92,0.69]
[1758503726375,12.8537458,234.08,233.92,0.69]
[1758503726581,31.2,234.04,233.93,14.96174068]
[1758503726760,31.2,234.04,233.94,0.67]
[1758503727182,0.34,234.06,233.94,0.67]
[1758503727495,31.2,234.04,233.94,0.67]
[1758503727799,31.54,234.04,233.94,0.67]
[1758503728582,0.34,234.03,233.95,4.27441761]
[1758503730392,0.34,234.03,233.95,14.96046163]
[1758503730589,0.34,234.03,233.95,15.63046163]
[1758503730905,12.85209382,234.1,233.96,0.67]
[1758503731109,31.2,234.06,233.96,0.67]
[1758503731284,0.34,234.08,233.96,0.67]
[1758503731598,31.2,234.06,233.96,0.67]
[1758503731974,31.54,234.06,233.96,0.67]
[1758503732175,31.54,234.06,233.97,14.95918279]
[1758503732373,31.2,234.09,233.98,0.67]
[1758503732571,31.2,234.08,233.98,0.67]
[1758503732790,13.19209382,234.12,233.98,0.67]
[1758503733107,31.2,234.1,233.98,0.67]
[1758503733413,0.34,234.11,233.98,0.67]
[1758503733608,0.34,234.1,233.98,0.67]
[1758503733803,0.34,234.09,233.98,0.67]
[1758503733981,0.34,234.08,233.98,0.67]
[1758503734397,0.34,234.11,233.99,14.95790417]
[1758503734602,31.2,234.09,234.0,0.67]
[1758503735141,31.54,234.09,234.0,0.67]
[1758503735489,0.34,234.08,234.0,0.67]
[1758503736311,0.34,234.08,233.99,14.95790417]
[1758503736514,0.34,234.08,234.0,0.67]
[1758503737795,31.2,234.09,234.0,0.67]
[1758503738382,0.34,234.08,233.99,4.2736869]
[1758503738700,0.34,234.07,233.99,4.9436869]
[1758503739111,0.34,234.07,233.99,0.67]
[1758503739292,0.34,234.06,233.97,4.27390112]
[1758503739604,0.34,234.06,233.98,0.67]
[1758503740703,0.34,234.06,233.98,4.94382183]
[1758503741210,0.34,234.09,233.99,0.67]
[1758503741421,35.0,234.08,233.99,0.67]
[1758503742311,35.0,234.08,234.0,4.27350427]
[1758503742514,0.34,234.07,233.98,0.67]
[1758503742717,35.0,234.08,233.98,0.67]
[1758503743092,31.54,234.1,233.98,0.67]
[1758503743293,35.0,234.12,233.98,31.87]
[1758503743594,0.34,234.14,233.99,0.67]
[1758503743793,0.34,234.17,233.99,0.67]
[1758503744002,9.38,234.17,233.99,0.67]
[1758503744317,9.38,234.17,234.02,31.2]
[1758503744491,35.34,234.17,234.03,15.62534759]
[1758503744692,35.34,234.17,234.04,0.67]
[1758503745126,31.3,234.18,234.06,31.2]
[1758503745127,0.1,234.18,234.06,31.2]
[1758503745294,0.1,234.18,234.1,31.2]
[1758503745812,0.1,234.18,234.12,31.2]
[1758503746209,0.1,234.18,234.13,0.67]
[1758503746404,0.1,234.18,234.15,4.2707666]
[1758503746921,0.1,234.18,234.1,31.2]
[1758503747093,0.1,234.18,234.13,0.67]
[1758503747297,0.1,234.18,234.14,0.67]
[1758503748342,0.1,234.18,234.14,31.87]
[1758503748509,0.1,234.18,234.17,31.2]
[1758503748830,0.1,234.18,234.16,31.2]
[1758503749003,0.1,234.18,234.16,31.87]
[1758503749332,0.1,234.18,234.17,0.67]
[1758503749518,0.1,234.18,234.13,0.67]
[1758503749699,0.1,234.18,234.14,0.67]
[1758503749901,0.1,234.18,234.07,66.18]
[1758503750146,0.1,234.18,234.11,31.2]
[1758503750602,0.1,234.18,234.12,15.61959849]
[1758503751218,0.1,234.18,234.13,0.67]
[1758503751604,0.1,234.18,234.14,0.67]
[1758503751797,0.1,234.18,234.15,0.67]
[1758503752214,0.1,234.18,234.17,31.2]
[1758503752429,0.1,234.18,234.17,31.87]
[1758503752733,0.1,234.18,234.17,36.14040184]
[1758503753236,0.1,234.18,234.17,0.67]
[1758503753398,0.1,234.18,234.08,31.2]
[1758503753602,0.1,234.18,234.12,31.2]
[1758503753806,0.1,234.18,234.13,66.83]
[1758503754023,0.1,234.18,234.14,0.67]
[1758503754218,0.1,234.18,234.15,0.67]
[1758503754540,0.1,234.18,234.16,0.67]
[1758503754727,0.1,234.18,234.15,4.27073916]
[1758503754940,0.34,234.17,234.05,0.67]
[1758503755239,31.2,234.15,233.99,0.67]
[1758503755549,0.34,234.14,233.98,0.67]
[1758503755852,35.28,234.13,233.98,0.67]
[1758503756146,31.2,234.1,233.98,0.67]
[1758503756731,31.2,234.1,233.99,14.95790417]
[1758503756923,31.2,234.1,234.0,0.7]
[1758503758743,31.2,234.1,234.01,4.27332165]
[1758503759054,31.2,234.14,234.02,0.7]
[1758503759251,31.2,234.13,234.02,0.7]
[1758503759428,31.54,234.13,234.02,0.7]
[1758503760122,31.2,234.13,234.02,0.7]
[1758503760434,0.34,234.16,234.02,0.7]
[1758503760435,47.78769063,234.17,234.02,0.7]
[1758503760642,0.34,234.17,234.04,31.2]
[1758503760833,31.2,234.16,234.05,15.65406963]
[1758503761038,0.34,234.17,234.06,0.7]
[1758503761545,0.1,234.18,234.08,31.2]
[1758503761738,0.1,234.18,234.09,0.7]
[1758503761937,0.44,234.18,234.09,0.7]
[1758503762448,0.34,234.17,234.05,4.97259132]
[1758503762673,0.1,234.18,234.08,31.2]
[1758503762823,0.1,234.18,234.09,4.27186124]
[1758503763018,0.1,234.18,234.09,15.65151436]
[1758503763222,0.1,234.18,234.1,0.7]
[1758503765150,0.1,234.18,234.1,4.97164257]
[1758503765355,0.1,234.18,234.1,0.7]
[1758503766063,0.1,234.18,234.09,0.7]
[1758503766224,0.1,234.18,234.09,4.97186124]
[1758503766432,0.1,234.18,234.1,0.7]
[1758503767355,0.44,234.18,234.06,4.27230675]
[1758503767537,0.44,234.18,234.06,4.97230675]
[1758503767732,0.44,234.18,234.07,0.7]
[1758503767938,0.34,234.17,234.07,0.7]
[1758503768137,31.54,234.17,234.02,12.60636522]
[1758503768344,0.34,234.16,234.03,0.7]
[1758503768535,0.34,234.15,233.97,0.7]
[1758503768744,31.2,234.11,233.97,0.7]
[1758503768951,31.2,234.09,233.97,0.7]
[1758503769147,31.2,234.09,233.97,4.97399395]
[1758503769347,0.34,234.08,233.97,0.7]
[1758503770159,0.34,234.07,233.93,0.68]
[1758503770346,0.34,234.06,233.93,0.68]
[1758503770546,46.15024882,234.11,233.93,0.68]
[1758503770547,31.2,234.02,233.93,0.68]
[1758503770953,0.34,234.01,233.93,0.68]
[1758503771247,66.46,234.02,233.91,0.68]
[1758503771446,31.54,234.02,233.91,0.68]
[1758503771764,34.92,234.01,233.91,0.68]
[1758503772545,31.54,234.02,233.91,0.68]
[1758503772746,34.92,234.01,233.91,0.68]
[1758503772969,34.92,234.01,233.91,4.95503901]
[1758503773175,31.2,233.98,233.82,0.68]
[1758503773670,0.34,233.97,233.82,0.68]
[1758503773845,31.2,233.94,233.82,0.68]
[1758503774049,0.34,233.93,233.82,0.68]
[1758503774244,0.34,233.93,233.83,4.27661121]
[1758503774671,35.26,233.93,233.82,0.68]
[1758503775176,0.34,233.93,233.82,4.95675945]
[1758503775851,29.02,233.94,233.83,0.68]
[1758503776051,0.34,233.96,233.83,0.68]
[1758503776272,31.2,233.93,233.84,4.27642832]
[1758503776647,31.2,233.93,233.85,0.68]
[1758503777575,0.34,233.99,233.85,0.68]
[1758503777875,0.34,234.01,233.85,0.68]
[1758503778174,31.2,234.0,233.85,0.68]
[1758503778384,0.34,233.99,233.82,0.68]
[1758503778672,0.34,233.98,233.82,0.68]
[1758503778855,31.2,233.99,233.79,0.68]
[1758503778856,0.34,233.97,233.79,0.68]
[1758503779060,31.2,233.93,233.79,0.68]
[1758503779257,0.34,233.92,233.79,0.68]
[1758503779944,22.70522992,233.95,233.8,31.2]
[1758503780270,22.70522992,233.95,233.81,0.68]
[1758503780646,22.70522992,233.95,233.82,4.27679411]
[1758503780849,26.97971012,233.95,233.81,0.68]
[1758503781069,26.97971012,233.95,233.81,4.95693603]
[1758503781373,20.0,234.02,233.81,14.96937861]
[1758503781581,16.16,234.01,233.82,0.68]
[1758503781759,34.92,234.0,233.82,0.68]
[1758503781960,31.2,233.97,233.82,0.68]
[1758503782474,66.14,233.97,233.82,0.68]
[1758503782794,66.14,233.97,233.78,31.2]
[1758503782795,4.27423491,233.96,233.78,4.95752587]
[1758503782970,31.2,233.91,233.74,0.68]
[1758503783546,31.2,233.89,233.74,0.68]
[1758503783766,31.2,233.85,233.72,4.27848816]
[1758503784276,31.2,233.83,233.72,4.27848816]
[1758503784787,31.2,233.89,233.72,4.27848816]
[1758503784951,31.2,233.85,233.72,4.27848816]
[1758503785349,31.2,233.81,233.72,4.27848816]
[1758503786660,31.2,233.81,233.73,0.68]
[1758503786870,35.02,233.94,233.75,31.2]
[1758503787182,35.06,233.96,233.76,31.88]
[1758503787383,35.06,233.95,233.77,0.68]
[1758503787701,31.2,233.92,233.77,0.68]
[1758503787880,31.2,233.92,233.78,14.97134056]
[1758503788065,31.2,233.92,233.79,0.68]
[1758503789484,31.2,233.9,233.79,0.68]
[1758503789863,31.2,233.9,233.8,14.97005987]
[1758503790065,31.2,233.96,233.8,14.97005987]
[1758503790263,31.2,233.92,233.81,0.68]
[1758503790861,20.0,234.01,233.81,0.68]
[1758503791081,35.04,234.0,233.81,0.68]
[1758503791385,132.2,234.03,233.83,31.2]
[1758503791592,31.2,233.96,233.84,0.68]
[1758503792089,31.2,233.96,233.85,4.27624545]
[1758503792885,31.2,233.96,233.85,14.96685909]
[1758503793084,31.2,233.96,233.85,4.27624545]
[1758503793394,31.2,233.96,233.78,0.68]
[1758503793607,31.2,233.94,233.78,0.68]
[1758503793966,31.2,233.94,233.79,4.27734291]
[1758503794171,31.2,233.96,233.79,4.27734291]
[1758503794369,31.2,233.92,233.8,0.68]
[1758503794585,31.2,233.92,233.79,14.97070019]
[1758503794895,20.0,234.01,233.8,0.68]
[1758503795076,31.2,233.97,233.8,0.68]
[1758503795396,31.2,233.93,233.8,0.68]
[1758503796296,31.2,233.93,233.81,4.27697703]
[1758503796591,31.2,233.93,233.81,14.96941961]
[1758503797394,31.2,233.91,233.81,15.64941961]
[1758503797572,31.2,233.91,233.81,4.27697703]
[1758503797895,31.2,233.91,233.79,4.2771884]
[1758503798478,31.2,233.91,233.79,14.97054568]
[1758503798895,31.2,233.91,233.78,4.27747444]
[1758503799777,35.47517676,233.91,233.78,4.27747444]
[1758503800185,35.47517676,233.91,233.76,4.27773772]
[1758503800572,46.16304816,233.91,233.74,4.27814928]
[1758503801994,35.47517676,233.91,233.74,4.27814928]
[1758503802870,35.47517676,233.91,233.69,31.2]
[1758503803072,31.2,233.89,233.69,31.88]
[1758503803288,31.2,233.89,233.71,4.27873321]
[1758503803977,4.27569693,233.88,233.71,4.27873321]
[1758503804286,31.2,233.84,233.71,4.95873321]
[1758503804784,31.2,233.89,233.71,4.95873321]
[1758503804985,31.2,233.85,233.69,4.95902765]
[1758503805182,31.2,233.85,233.69,4.27902765]
[1758503805503,31.2,233.85,233.7,0.68]
[1758503805987,31.2,233.85,233.71,4.27880706]
[1758503806896,35.47626512,233.85,233.67,13.54559378]
[1758503807081,35.47626512,233.85,233.68,36.15935638]
[1758503807286,31.2,233.81,233.69,0.68]
[1758503807492,66.14,233.82,233.69,0.68]
[1758503808085,66.14,233.82,233.7,4.27899015]
[1758503808286,31.2,233.82,233.7,4.27899015]
[1758503808497,31.2,233.79,233.69,0.68]
[1758503808810,31.2,233.79,233.65,0.88]
[1758503809475,31.2,233.78,233.65,0.88]
[1758503809705,31.2,233.78,233.65,5.15989929]
[1758503809887,31.2,233.78,233.65,0.2]
[1758503810089,31.2,233.77,233.65,0.2]
[1758503810497,46.17198099,233.77,233.65,0.2]
[1758503812602,35.47770885,233.77,233.65,0.2]
[1758503812788,31.2,233.73,233.65,0.2]
[1758503814099,35.05060175,233.73,233.65,0.2]
[1758503814492,3.85060175,233.73,233.65,0.2]
[1758503814800,66.16,233.72,233.65,0.2]
[1758503815322,31.2,233.72,233.65,0.2]
[1758503815491,31.2,233.68,233.65,0.2]
[1758503816018,34.96,233.67,233.65,0.2]
[1758503816328,31.2,233.68,233.65,0.2]
[1758503816489,34.96,233.67,233.65,0.2]
[1758503816821,31.2,233.68,233.65,0.2]
[1758503816994,3.46285784,233.78,233.65,0.2]
[1758503817196,3.84982137,233.78,233.65,4.47978073]
[1758503817412,34.96,233.77,233.65,4.47978073]
[1758503817735,7.2415055,233.78,233.65,4.47978073]
[1758503817898,34.96,233.77,233.65,5.16978073]
[1758503818099,31.2,233.74,233.65,5.16978073]
[1758503818300,25.04568921,233.81,233.65,5.16978073]
[1758503818301,34.96,233.73,233.65,5.16978073]
[1758503818497,25.04568921,233.81,233.66,0.69]
[1758503818796,31.2,233.77,233.66,0.69]
[1758503819889,31.2,233.77,233.66,4.9696568]
[1758503820220,31.2,233.77,233.66,0.69]
[1758503820534,31.2,233.75,233.65,0.2]
[1758503820821,34.96,233.74,233.65,0.2]
[1758503821133,66.16,233.73,233.65,4.47977717]
[1758503821318,31.2,233.69,233.65,0.2]
[1758503821721,31.2,233.66,233.65,0.2]
[1758503822097,66.16,233.66,233.65,0.2]
[1758503822292,23.37553325,233.78,233.65,0.2]
[1758503822507,31.2,233.74,233.65,0.2]
[1758503823708,3.42275274,233.73,233.65,0.2]
[1758503823930,31.2,233.74,233.65,0.2]
[1758503824142,34.62269737,233.74,233.65,0.2]
[1758503825628,31.2,233.74,233.65,0.2]
[1758503825837,34.6226485,233.74,233.65,0.2]
[1758503826007,34.62262512,233.74,233.65,0.2]
[1758503826200,43.1791409,233.74,233.65,0.2]
[1758503826630,34.62262512,233.74,233.65,0.2]
[1758503827627,43.1791409,233.74,233.65,0.2]
[1758503828134,34.62262512,233.74,233.65,0.2]
[1758503828504,3.37553325,233.78,233.65,0.2]
[1758503828731,31.2,233.74,233.65,0.2]
[1758503828931,31.2,233.73,233.65,0.2]
[1758503829109,31.2,233.69,233.65,0.2]
[1758503830023,34.6234851,233.68,233.65,0.2]
[1758503830321,34.96,233.67,233.65,0.2]
[1758503831621,31.2,233.67,233.65,0.2]
[1758503831820,34.96,233.66,233.65,0.2]
[1758503832242,38.38377813,233.66,233.65,0.2]
[1758503833616,38.38377813,233.66,233.64,0.2]
[1758503833814,20.0,233.65,233.63,0.2]
[1758503834020,20.0,233.65,233.63,1e-08]
[1758503834927,16.27407122,233.64,233.63,1e-08]
[1758503835521,3.42407122,233.64,233.63,1e-08]
[1758503836534,34.72,233.68,233.63,1e-08]
[1758503836535,3.42388074,233.66,233.63,1e-08]
[1758503836835,3.42407122,233.64,233.63,1e-08]
[1758503838318,69.58407122,233.64,233.63,1e-08]
[1758503839023,71.30143593,233.64,233.63,1e-08]
[1758503839620,93.96939213,233.64,233.63,1e-08]
[1758503840036,113.96939213,233.64,233.63,1e-08]
[1758503842524,31.2,233.57,233.55,0.2]
[1758503842835,38.38524404,233.56,233.55,0.2]
[1758503843141,71.3032726,233.56,233.55,0.2]
[1758503843333,79.86638272,233.56,233.53,0.2]
[1758503843840,20.0,233.54,233.53,1e-08]
[1758503844050,54.96,233.54,233.53,1e-08]
[1758503844250,20.0,233.54,233.53,1e-08]
[1758503844547,54.98,233.54,233.53,1e-08]
[1758503844849,58.40553738,233.54,233.53,1e-08]
[1758503845042,23.42553738,233.54,233.53,1e-08]
[1758503845227,58.40553738,233.54,233.53,1e-08]
[1758503845642,23.42553738,233.54,233.53,1e-08]
[1758503845949,58.40553738,233.54,233.53,1e-08]
[1758503846152,31.2,233.49,233.48,1e-08]
[1758503846329,66.18,233.49,233.48,1e-08]
[1758503847164,69.60627093,233.49,233.48,1e-08]
[1758503847314,71.32496386,233.49,233.48,1e-08]
[1758503848530,36.34496386,233.49,233.48,0.71000001]
[1758503848750,22.89133459,233.57,233.48,0.71000001]
[1758503848925,31.2,233.51,233.48,0.71000001]
[1758503849125,35.0,233.5,233.48,0.71000001]
[1758503849325,35.0,233.49,233.48,1e-08]
[1758503850825,35.0,233.49,233.48,0.71000001]
[1758503851027,38.42627093,233.49,233.48,1e-08]
[1758503851720,69.60627093,233.49,233.48,0.71000001]
[1758503851917,34.62627093,233.49,233.48,0.71000001]
[1758503852145,69.60627093,233.49,233.48,0.71000001]
[1758503852729,66.18,233.49,233.48,0.71000001]
[1758503853445,66.18,233.49,233.48,1e-08]
[1758503854044,3.42641768,233.48,233.47,1e-08]
[1758503854843,5.14511062,233.48,233.47,1e-08]
[1758503855423,25.14511062,233.48,233.47,1e-08]
[1758503856449,31.2,233.45,233.41,0.2]
[1758503856633,31.2,233.42,233.41,0.2]
[1758503856819,66.18,233.42,233.41,0.2]
[1758503857232,69.60729843,233.42,233.41,0.2]
[1758503857528,73.06547758,233.42,233.41,0.2]
[1758503858246,38.06547758,233.42,233.41,0.91]
[1758503858448,38.06547758,233.42,233.41,0.2]
[1758503858449,73.08547758,233.42,233.41,0.2]
[1758503858639,93.08547758,233.42,233.41,1e-08]
[1758503859025,31.2,233.33,233.29,0.2]
[1758503859226,31.2,233.3,233.29,0.2]
[1758503859437,69.66906129,233.3,233.29,0.2]
[1758503859641,34.62906129,233.3,233.29,0.91]
[1758503859839,35.04,233.3,233.29,0.91]
[1758503860043,3.4286204,233.33,233.29,0.91]
[1758503860251,39.50850893,233.32,233.3,0.71]
[1758503860443,31.2,233.3,233.29,0.2]
[1758503860749,66.22,233.3,233.29,0.2]
[1758503860934,66.22,233.3,233.29,0.91]
[1758503861248,66.2,233.3,233.29,0.91]
[1758503861439,69.62906129,233.3,233.29,0.2]
[1758503863340,69.62906129,233.3,233.29,1e-08]
[1758503863939,3.42906129,233.3,233.29,1e-08]
[1758503864249,69.64906129,233.3,233.29,0.71000001]
[1758503864454,69.64906129,233.3,233.29,1e-08]
[1758503864828,69.64906129,233.3,233.29,0.71000001]
[1758503864829,66.22,233.3,233.29,0.71000001]
[1758503866060,35.02,233.3,233.29,0.71000001]
[1758503867336,4.48850893,233.32,233.29,0.71000001]
[1758503867653,35.04,233.31,233.3,0.71]
[1758503868031,8.5697679,233.38,233.3,0.71]
[1758503868236,35.02,233.37,233.3,0.71]
[1758503868532,35.02,233.36,233.3,0.71]
[1758503868734,35.02,233.35,233.3,0.71]
[1758503868935,35.02,233.34,233.3,0.71]
[1758503869553,31.2,233.31,233.3,0.71]
[1758503869734,66.22,233.31,233.3,0.71]
[1758503871158,3.42854955,233.34,233.3,0.71]
[1758503871359,3.42854955,233.34,233.29,1e-08]
[1758503871360,31.2,233.34,233.29,1e-08]
[1758503871664,31.2,233.3,233.29,1e-08]
[1758503872380,12.89,233.5,233.29,0.71000001]
[1758503872545,35.02,233.4,233.29,0.71000001]
[1758503872771,31.2,233.37,233.29,0.71000001]
[1758503872965,66.22,233.37,233.29,0.71000001]
[1758503873660,31.2,233.37,233.3,4.28632661]
[1758503873972,3.41757594,233.44,233.31,0.71]
[1758503874273,8.56559908,233.5,233.31,0.71]
[1758503874449,57.25208708,233.41,233.31,0.71]
[1758503875643,21.51208708,233.41,233.33,31.2]
[1758503875844,35.02,233.47,233.34,0.71]
[1758503876477,66.22,233.47,233.34,0.71]
[1758503876638,35.0,233.49,233.35,31.2]
[1758503876840,35.0,233.49,233.36,0.71]
[1758503877069,31.2,233.48,233.36,0.71]
[1758503877254,35.0,233.51,233.36,0.71]
[1758503877452,13.57466081,233.58,233.36,0.71]
[1758503877672,31.2,233.54,233.37,14.99764322]
[1758503877859,31.2,233.5,233.38,0.71]
[1758503878953,31.2,233.5,233.39,4.28467372]
[1758503879155,31.2,233.5,233.4,0.71]
[1758503880159,3.50555597,233.55,233.4,0.71]
[1758503880353,31.2,233.51,233.4,0.71]
[1758503880969,31.2,233.51,233.41,4.28430658]
[1758503881153,0.69,233.58,233.42,0.71]
[1758503881354,0.69,233.61,233.42,0.71]
[1758503881569,35.0,233.6,233.42,0.71]
[1758503881757,31.2,233.57,233.42,0.71]
[1758503882100,0.69,233.59,233.42,0.71]
[1758503882388,31.2,233.57,233.42,0.71]
[1758503882893,66.2,233.57,233.42,0.71]
[1758503883107,66.2,233.57,233.43,14.99378828]
[1758503883284,66.2,233.57,233.44,0.71]
[1758503883887,66.89,233.57,233.44,0.71]
[1758503884095,70.31516067,233.57,233.33,34.19248526]
[1758503884388,0.69,233.56,233.4,0.71]
[1758503884987,3.4253907,233.55,233.4,0.71]
[1758503885162,31.2,233.52,233.4,0.71]
[1758503885362,35.67,233.51,233.4,0.71]
[1758503886464,35.67,233.51,233.3,10.71539497]
[1758503886465,35.67,233.51,233.36,0.71]
[1758503887160,0.69,233.55,233.37,14.99764322]
[1758503887368,34.98,233.57,233.4,31.2]
[1758503887581,34.98,233.57,233.42,31.2]
[1758503887775,0.69,233.58,233.43,0.71]
[1758503887980,35.67,233.58,233.43,0.71]
[1758503888785,0.69,233.58,233.43,0.71]
[1758503889092,31.2,233.55,233.43,0.71]
[1758503889468,31.2,233.55,233.43,4.99392429]
[1758503889671,31.2,233.53,233.44,0.71]
[1758503890188,31.89,233.53,233.44,0.71]
[1758503890575,31.2,233.61,233.44,0.71]
[1758503890877,34.98,233.6,233.44,0.71]
[1758503891089,34.98,233.59,233.45,14.99250373]
[1758503891393,0.69,233.61,233.46,0.7]
[1758503891394,34.98,233.61,233.46,0.7]
[1758503891582,0.69,233.58,233.46,0.7]
[1758503892077,31.89,233.58,233.46,0.7]
[1758503892277,34.98,233.61,233.48,31.2]
[1758503892603,0.79,233.65,233.49,0.7]
[1758503892779,0.79,233.65,233.49,81.3]
[1758503892984,3.42436435,233.62,233.49,0.7]
[1758503893286,0.69,233.61,233.49,0.7]
[1758503893485,31.2,233.57,233.49,0.7]
[1758503894578,0.69,233.56,233.44,0.7]
[1758503895184,35.31537885,233.56,233.44,4.98370019]
[1758503895382,0.69,233.55,233.44,4.98370019]
[1758503895784,34.62537885,233.56,233.44,4.98370019]
[1758503895785,0.69,233.54,233.44,0.7]
[1758503895986,0.69,233.54,233.44,4.9837276]
[1758503896296,66.87,233.57,233.45,0.7]